[Event "Late-Titled-Tuesday-Blitz-April-23-2024"]
[Site "Chess.com"]
[Date "2024.04.23"]
[Round "4"]
[White "profedechess93"]
[Black "LuisFSiles"]
[Result "1-0"]
[WhiteElo "2677"]
[BlackElo "2434"]
[TimeControl "180+1"]
[EndTime "14:40:36 PDT"]
[Termination "profedechess93 won on time"]

1. e4 {[%clk 0:03:00.9]} 1... c5 {[%clk 0:02:59.6]} 2. Nf3 {[%clk 0:03:01.1]}
2... Nc6 {[%clk 0:02:59.9]} 3. Bb5 {[%clk 0:03:01.2]} 3... g6 {[%clk 0:02:59.9]}
4. c3 {[%clk 0:03:01.5]} 4... Nf6 {[%clk 0:02:58.7]} 5. e5 {[%clk 0:02:59.6]}
5... Nd5 {[%clk 0:02:58.6]} 6. d4 {[%clk 0:03:00.1]} 6... cxd4 {[%clk
0:02:58.6]} 7. Bxc6 {[%clk 0:03:00.3]} 7... dxc6 {[%clk 0:02:50.4]} 8. Qxd4
{[%clk 0:03:00.9]} 8... Bf5 {[%clk 0:02:42]} 9. O-O {[%clk 0:02:54.8]} 9... Bg7
{[%clk 0:02:34.4]} 10. Qh4 {[%clk 0:02:48.9]} 10... h6 {[%clk 0:02:06.3]} 11.
Re1 {[%clk 0:02:06.1]} 11... g5 {[%clk 0:02:03]} 12. Qg3 {[%clk 0:02:05]} 12...
Qb6 {[%clk 0:01:43.7]} 13. Na3 {[%clk 0:01:41.5]} 13... Qa6 {[%clk 0:01:34.5]}
14. Nd4 {[%clk 0:01:36.9]} 14... Bg6 {[%clk 0:01:23.1]} 15. e6 {[%clk
0:01:32.3]} 15... f5 {[%clk 0:01:10.7]} 16. Bxg5 {[%clk 0:00:52.4]} 16... Bxd4
{[%clk 0:01:09.5]} 17. Bd2 {[%clk 0:00:47.6]} 17... Rg8 {[%clk 0:00:51.5]} 18.
cxd4 {[%clk 0:00:43.2]} 18... O-O-O {[%clk 0:00:50.7]} 19. Qe5 {[%clk
0:00:38.2]} 19... Bh5 {[%clk 0:00:40.9]} 20. Rac1 {[%clk 0:00:34.5]} 20... Bf3
{[%clk 0:00:33.7]} 21. g3 {[%clk 0:00:34.3]} 21... Be4 {[%clk 0:00:29.6]} 22.
Rc5 {[%clk 0:00:28.3]} 22... Qd3 {[%clk 0:00:27.9]} 23. Nb5 {[%clk 0:00:20.4]}
23... Rd6 {[%clk 0:00:18.4]} 24. Nxd6+ {[%clk 0:00:11.7]} 24... exd6 {[%clk
0:00:18.5]} 25. Qxd6 {[%clk 0:00:11.5]} 25... Qf3 {[%clk 0:00:19.2]} 26. Rxe4
{[%clk 0:00:07.1]} 26... fxe4 {[%clk 0:00:18.9]} 27. Rc1 {[%clk 0:00:03.6]}
27... e3 {[%clk 0:00:17.6]} 28. fxe3 {[%clk 0:00:02.9]} 28... Nxe3 {[%clk
0:00:17.5]} 29. Qd7+ {[%clk 0:00:02]} 29... Kb8 {[%clk 0:00:16.5]} 30. Qd6+
{[%clk 0:00:02.7]} 30... Ka8 {[%clk 0:00:15.3]} 31. Bxe3 {[%clk 0:00:02.8]}
31... Qxe3+ {[%clk 0:00:15.2]} 32. Kg2 {[%clk 0:00:03.7]} 32... Qd2+ {[%clk
0:00:13.5]} 33. Kh3 {[%clk 0:00:03.6]} 33... Qxc1 {[%clk 0:00:14.4]} 34. e7
{[%clk 0:00:04.1]} 34... Qf1+ {[%clk 0:00:11.2]} 35. Kh4 {[%clk 0:00:03.4]} 1-0

[Event "Late-Titled-Tuesday-Blitz-April-23-2024"]
[Site "Chess.com"]
[Date "2024.04.23"]
[Round "4"]
[White "Sokoloco"]
[Black "ChristopherYoo"]
[Result "0-1"]
[WhiteElo "2760"]
[BlackElo "2991"]
[TimeControl "180+1"]
[EndTime "14:40:38 PDT"]
[Termination "ChristopherYoo won on time"]

1. b3 {[%clk 0:03:00.9]} 1... d5 {[%clk 0:02:59]} 2. d4 {[%clk 0:02:54]} 2... c5
{[%clk 0:02:57.7]} 3. e3 {[%clk 0:02:54]} 3... cxd4 {[%clk 0:02:57.9]} 4. exd4
{[%clk 0:02:54.1]} 4... Nc6 {[%clk 0:02:58.2]} 5. Nf3 {[%clk 0:02:53.6]} 5...
Bg4 {[%clk 0:02:58.5]} 6. Be2 {[%clk 0:02:53.4]} 6... e6 {[%clk 0:02:58.9]} 7.
O-O {[%clk 0:02:51.7]} 7... Bd6 {[%clk 0:02:57.1]} 8. Bb2 {[%clk 0:02:51.9]}
8... Nge7 {[%clk 0:02:54]} 9. Ne5 {[%clk 0:02:44.9]} 9... Bxe2 {[%clk
0:02:53.3]} 10. Qxe2 {[%clk 0:02:45.8]} 10... Qc7 {[%clk 0:02:53.3]} 11. f4
{[%clk 0:02:40.7]} 11... Nf5 {[%clk 0:02:50.2]} 12. c3 {[%clk 0:02:40.9]} 12...
O-O {[%clk 0:02:38.5]} 13. Nd2 {[%clk 0:02:38.6]} 13... Rae8 {[%clk 0:02:25.3]}
14. Rae1 {[%clk 0:02:38.8]} 14... f6 {[%clk 0:02:24.6]} 15. Nxc6 {[%clk
0:02:02.6]} 15... bxc6 {[%clk 0:02:23.1]} 16. Qg4 {[%clk 0:01:36.7]} 16... c5
{[%clk 0:02:12.9]} 17. Re2 {[%clk 0:00:50.7]} 17... Qf7 {[%clk 0:01:37.6]} 18.
g3 {[%clk 0:00:46.9]} 18... cxd4 {[%clk 0:01:36.4]} 19. cxd4 {[%clk 0:00:47]}
19... Rc8 {[%clk 0:01:29.8]} 20. Nf3 {[%clk 0:00:45]} 20... h5 {[%clk
0:01:26.3]} 21. Qh3 {[%clk 0:00:45]} 21... Rfe8 {[%clk 0:01:25.8]} 22. Nh4
{[%clk 0:00:30.3]} 22... Nxh4 {[%clk 0:01:24.2]} 23. Qxh4 {[%clk 0:00:31.2]}
23... Qg6 {[%clk 0:01:23.8]} 24. Qh3 {[%clk 0:00:30.5]} 24... Qg4 {[%clk
0:01:21.6]} 25. Qxg4 {[%clk 0:00:30.2]} 25... hxg4 {[%clk 0:01:22]} 26. Kf2
{[%clk 0:00:22]} 26... Kf7 {[%clk 0:01:18.9]} 27. Ke3 {[%clk 0:00:22.7]} 27...
a5 {[%clk 0:01:03.6]} 28. Kd3 {[%clk 0:00:23.2]} 28... a4 {[%clk 0:00:58.9]} 29.
Bc3 {[%clk 0:00:23.3]} 29... Rc6 {[%clk 0:00:46.6]} 30. Rb1 {[%clk 0:00:20.8]}
30... Rec8 {[%clk 0:00:45.9]} 31. Be1 {[%clk 0:00:19.6]} 31... axb3 {[%clk
0:00:30.8]} 32. axb3 {[%clk 0:00:20.5]} 32... g5 {[%clk 0:00:30.6]} 33. fxg5
{[%clk 0:00:18.1]} 33... e5 {[%clk 0:00:31.1]} 34. Rf2 {[%clk 0:00:12.9]} 34...
e4+ {[%clk 0:00:30.8]} 35. Ke3 {[%clk 0:00:13.6]} 35... Be7 {[%clk 0:00:28.1]}
36. gxf6 {[%clk 0:00:09.9]} 36... Bxf6 {[%clk 0:00:29]} 37. Rf4 {[%clk
0:00:05.1]} 37... Rg8 {[%clk 0:00:20.8]} 38. Bd2 {[%clk 0:00:04.5]} 38... Ke6
{[%clk 0:00:21.3]} 39. Ke2 {[%clk 0:00:05.1]} 39... Bxd4 {[%clk 0:00:21.2]} 40.
b4 {[%clk 0:00:03.3]} 40... Be5 {[%clk 0:00:20.4]} 41. Rff1 {[%clk 0:00:03.5]}
41... d4 {[%clk 0:00:21]} 42. b5 {[%clk 0:00:04.1]} 42... Rc2 {[%clk 0:00:20.7]}
43. Kd1 {[%clk 0:00:02.6]} 43... Ra2 {[%clk 0:00:21.4]} 44. b6 {[%clk 0:00:03]}
44... e3 {[%clk 0:00:21.6]} 45. Bxe3 {[%clk 0:00:01.7]} 45... dxe3 {[%clk
0:00:21.7]} 0-1

[Event "Late-Titled-Tuesday-Blitz-April-23-2024"]
[Site "Chess.com"]
[Date "2024.04.23"]
[Round "4"]
[White "Naoki"]
[Black "Ali_rastbod"]
[Result "1-0"]
[WhiteElo "2550"]
[BlackElo "2694"]
[TimeControl "180+1"]
[EndTime "14:40:38 PDT"]
[Termination "Naoki won by checkmate"]

1. e4 {[%clk 0:03:00.9]} 1... Nc6 {[%clk 0:02:56.5]} 2. Nf3 {[%clk 0:03:00.8]}
2... g6 {[%clk 0:02:54.1]} 3. d4 {[%clk 0:03:00]} 3... Bg7 {[%clk 0:02:55]} 4.
c3 {[%clk 0:02:58.1]} 4... d6 {[%clk 0:02:52.9]} 5. Bc4 {[%clk 0:02:56.3]} 5...
h6 {[%clk 0:02:47.8]} 6. h3 {[%clk 0:02:56]} 6... e5 {[%clk 0:02:42.5]} 7. O-O
{[%clk 0:02:27.3]} 7... Nge7 {[%clk 0:02:39.2]} 8. Re1 {[%clk 0:02:25.9]} 8...
O-O {[%clk 0:02:22.6]} 9. a4 {[%clk 0:02:25.9]} 9... exd4 {[%clk 0:01:57.9]} 10.
cxd4 {[%clk 0:02:26.1]} 10... d5 {[%clk 0:01:57.5]} 11. exd5 {[%clk 0:02:21.7]}
11... Nxd5 {[%clk 0:01:58.4]} 12. a5 {[%clk 0:02:18.6]} 12... Be6 {[%clk
0:01:50.8]} 13. Bb3 {[%clk 0:02:00.8]} 13... Re8 {[%clk 0:01:47.1]} 14. Nc3
{[%clk 0:01:48.9]} 14... Qd7 {[%clk 0:01:24.4]} 15. Ne4 {[%clk 0:01:39.9]} 15...
b6 {[%clk 0:01:23.1]} 16. axb6 {[%clk 0:01:33]} 16... cxb6 {[%clk 0:01:18.5]}
17. Ra3 {[%clk 0:00:21.7]} 17... Ndb4 {[%clk 0:00:56.7]} 18. Bxh6 {[%clk
0:00:12]} 18... Bxb3 {[%clk 0:00:54.2]} 19. Qxb3 {[%clk 0:00:12.9]} 19... Rxe4
{[%clk 0:00:52.2]} 20. Rxe4 {[%clk 0:00:13.8]} 20... Bxh6 {[%clk 0:00:52.4]} 21.
Ne5 {[%clk 0:00:13.9]} 21... Nxe5 {[%clk 0:00:51.8]} 22. dxe5 {[%clk 0:00:11]}
22... Nc6 {[%clk 0:00:12.4]} 23. e6 {[%clk 0:00:11.2]} 23... fxe6 {[%clk
0:00:13.3]} 24. Rxe6 {[%clk 0:00:11.8]} 24... Kh7 {[%clk 0:00:13.4]} 25. Qc4
{[%clk 0:00:11.6]} 25... Nd4 {[%clk 0:00:10.3]} 26. Re4 {[%clk 0:00:06.6]} 26...
Rd8 {[%clk 0:00:10.5]} 27. Rg3 {[%clk 0:00:02.8]} 27... b5 {[%clk 0:00:06.1]}
28. Qd3 {[%clk 0:00:03]} 28... Bg7 {[%clk 0:00:02.6]} 29. Rh4+ {[%clk
0:00:01.9]} 29... Kg8 {[%clk 0:00:03]} 30. Qxg6 {[%clk 0:00:02.5]} 30... Ne2+
{[%clk 0:00:03.5]} 31. Kh2 {[%clk 0:00:03.2]} 31... Nxg3 {[%clk 0:00:03.7]} 32.
Qh7+ {[%clk 0:00:03.9]} 32... Kf8 {[%clk 0:00:04.1]} 33. Rf4+ {[%clk 0:00:04.3]}
33... Ke7 {[%clk 0:00:04]} 34. Qxg7+ {[%clk 0:00:04.7]} 34... Ke6 {[%clk
0:00:04.7]} 35. Qg6+ {[%clk 0:00:04.9]} 35... Kd5 {[%clk 0:00:03.8]} 36. Qxg3
{[%clk 0:00:05]} 36... Kc6 {[%clk 0:00:04.5]} 37. Qf3+ {[%clk 0:00:05.3]} 37...
Kb6 {[%clk 0:00:04.9]} 38. Rf6+ {[%clk 0:00:05.9]} 38... Ka5 {[%clk 0:00:03.9]}
39. Qa3# {[%clk 0:00:06.2]} 1-0

[Event "Late-Titled-Tuesday-Blitz-April-23-2024"]
[Site "Chess.com"]
[Date "2024.04.23"]
[Round "4"]
[White "CombativeWombat"]
[Black "ATM622"]
[Result "0-1"]
[WhiteElo "2339"]
[BlackElo "2512"]
[TimeControl "180+1"]
[EndTime "14:40:40 PDT"]
[Termination "ATM622 won by resignation"]

1. e4 {[%clk 0:03:00.9]} 1... c6 {[%clk 0:02:59.5]} 2. Nc3 {[%clk 0:03:00.6]}
2... d5 {[%clk 0:02:59.7]} 3. Nf3 {[%clk 0:03:01.3]} 3... g6 {[%clk 0:02:59.5]}
4. d4 {[%clk 0:02:56.6]} 4... dxe4 {[%clk 0:02:58.4]} 5. Nxe4 {[%clk 0:02:56.4]}
5... Bg7 {[%clk 0:02:59]} 6. h3 {[%clk 0:02:55.9]} 6... Nf6 {[%clk 0:02:58.7]}
7. Nxf6+ {[%clk 0:02:55.8]} 7... exf6 {[%clk 0:02:59.1]} 8. Bc4 {[%clk
0:02:52.6]} 8... O-O {[%clk 0:02:58.8]} 9. O-O {[%clk 0:02:52.8]} 9... f5 {[%clk
0:02:59.2]} 10. Re1 {[%clk 0:02:50.3]} 10... Nd7 {[%clk 0:02:58.5]} 11. Bb3
{[%clk 0:02:48.2]} 11... Nf6 {[%clk 0:02:58.6]} 12. Bf4 {[%clk 0:02:32]} 12...
Ne4 {[%clk 0:02:50.7]} 13. Be5 {[%clk 0:02:25.7]} 13... a5 {[%clk 0:02:33]} 14.
Bxg7 {[%clk 0:02:18.5]} 14... Kxg7 {[%clk 0:02:32.3]} 15. c3 {[%clk 0:02:15.2]}
15... Re8 {[%clk 0:02:26.8]} 16. Ne5 {[%clk 0:02:11.2]} 16... Be6 {[%clk
0:02:20.8]} 17. Bc2 {[%clk 0:02:08.2]} 17... f6 {[%clk 0:02:10.6]} 18. Nd3
{[%clk 0:02:07.2]} 18... Bf7 {[%clk 0:01:51]} 19. Nf4 {[%clk 0:02:03.5]} 19...
Qc7 {[%clk 0:01:47.1]} 20. g3 {[%clk 0:02:01.1]} 20... Rad8 {[%clk 0:01:42.6]}
21. Qf3 {[%clk 0:01:53.9]} 21... Ng5 {[%clk 0:01:33.6]} 22. Qh1 {[%clk
0:01:36.8]} 22... c5 {[%clk 0:01:10.8]} 23. h4 {[%clk 0:01:35.5]} 23... Ne6
{[%clk 0:01:09.6]} 24. Ba4 {[%clk 0:01:17.6]} 24... Nxf4 {[%clk 0:01:03.8]} 25.
Bxe8 {[%clk 0:01:15.5]} 25... Nd3 {[%clk 0:00:39.6]} 26. Bxf7 {[%clk 0:00:57.9]}
26... Nxe1 {[%clk 0:00:38.3]} 27. Rxe1 {[%clk 0:00:50]} 27... Kxf7 {[%clk
0:00:27.6]} 28. dxc5 {[%clk 0:00:45.1]} 28... Rd2 {[%clk 0:00:20.9]} 29. b4
{[%clk 0:00:42.2]} 29... a4 {[%clk 0:00:06.8]} 30. Qf3 {[%clk 0:00:41.7]} 30...
Qd7 {[%clk 0:00:05.3]} 31. a3 {[%clk 0:00:36.9]} 31... Rd3 {[%clk 0:00:04.7]}
32. Qe2 {[%clk 0:00:29.3]} 32... Rxc3 {[%clk 0:00:04.7]} 33. Rd1 {[%clk
0:00:29.7]} 33... Qe6 {[%clk 0:00:04.9]} 34. Qxe6+ {[%clk 0:00:28.1]} 34... Kxe6
{[%clk 0:00:05.2]} 35. Rd6+ {[%clk 0:00:28.9]} 35... Ke5 {[%clk 0:00:05.4]} 36.
Rb6 {[%clk 0:00:29.2]} 36... Rxa3 {[%clk 0:00:05.2]} 37. Rxb7 {[%clk 0:00:29]}
37... Rb3 {[%clk 0:00:05.1]} 38. c6 {[%clk 0:00:26.7]} 38... Kd6 {[%clk
0:00:05.1]} 39. b5 {[%clk 0:00:27.4]} 39... a3 {[%clk 0:00:03.7]} 40. Rd7+
{[%clk 0:00:27.1]} 40... Ke6 {[%clk 0:00:03.9]} 41. Rb7 {[%clk 0:00:19.2]} 41...
a2 {[%clk 0:00:03.8]} 42. Ra7 {[%clk 0:00:19.3]} 42... Rb1+ {[%clk 0:00:03.9]}
43. Kg2 {[%clk 0:00:19.1]} 43... a1=Q {[%clk 0:00:04.3]} 44. Rxa1 {[%clk
0:00:19.4]} 44... Rxa1 {[%clk 0:00:05.2]} 45. c7 {[%clk 0:00:16.6]} 45... Kd7
{[%clk 0:00:05.5]} 46. b6 {[%clk 0:00:17]} 46... Rb1 {[%clk 0:00:05.7]} 0-1

[Event "Late-Titled-Tuesday-Blitz-April-23-2024"]
[Site "Chess.com"]
[Date "2024.04.23"]
[Round "4"]
[White "Bykov_Egor"]
[Black "Harsha_Bharathakoti"]
[Result "0-1"]
[WhiteElo "2614"]
[BlackElo "2911"]
[TimeControl "180+1"]
[EndTime "14:40:44 PDT"]
[Termination "Harsha_Bharathakoti won by resignation"]

1. d4 {[%clk 0:03:00.9]} 1... d5 {[%clk 0:02:53.2]} 2. c4 {[%clk 0:03:00.3]}
2... e6 {[%clk 0:02:53.7]} 3. Nf3 {[%clk 0:03:00.1]} 3... a6 {[%clk 0:02:53.2]}
4. e3 {[%clk 0:02:52.8]} 4... Nf6 {[%clk 0:02:51.8]} 5. Nc3 {[%clk 0:02:49.2]}
5... Bd6 {[%clk 0:02:40.2]} 6. a3 {[%clk 0:02:41.7]} 6... O-O {[%clk 0:02:37.3]}
7. c5 {[%clk 0:02:18.1]} 7... Be7 {[%clk 0:02:36.9]} 8. Bd3 {[%clk 0:02:18.7]}
8... b6 {[%clk 0:02:20.3]} 9. b4 {[%clk 0:02:17.7]} 9... a5 {[%clk 0:02:20.6]}
10. Bb2 {[%clk 0:02:12.3]} 10... c6 {[%clk 0:02:19.3]} 11. Ne5 {[%clk
0:01:57.2]} 11... Nfd7 {[%clk 0:02:17.1]} 12. f4 {[%clk 0:01:36.7]} 12... Nxe5
{[%clk 0:02:14.6]} 13. fxe5 {[%clk 0:01:36.1]} 13... Ba6 {[%clk 0:02:11.1]} 14.
O-O {[%clk 0:01:32.1]} 14... Bxd3 {[%clk 0:01:55.3]} 15. Qxd3 {[%clk 0:01:33]}
15... Na6 {[%clk 0:01:55.7]} 16. b5 {[%clk 0:01:16]} 16... cxb5 {[%clk
0:01:54.8]} 17. c6 {[%clk 0:01:16]} 17... b4 {[%clk 0:01:36.7]} 18. Nb5 {[%clk
0:01:15.9]} 18... Nc7 {[%clk 0:01:36.5]} 19. axb4 {[%clk 0:00:49.5]} 19... Bxb4
{[%clk 0:01:29.6]} 20. Ba3 {[%clk 0:00:46.4]} 20... Bxa3 {[%clk 0:01:24]} 21.
Rxa3 {[%clk 0:00:47.3]} 21... Nxb5 {[%clk 0:01:21.9]} 22. Qxb5 {[%clk
0:00:48.2]} 22... Qc7 {[%clk 0:01:21.7]} 23. Rb1 {[%clk 0:00:47.5]} 23... Rab8
{[%clk 0:01:10.3]} 24. Rc3 {[%clk 0:00:42.4]} 24... f6 {[%clk 0:01:00.8]} 25.
exf6 {[%clk 0:00:30.6]} 25... Rxf6 {[%clk 0:01:01.7]} 26. Qe2 {[%clk 0:00:24]}
26... h6 {[%clk 0:00:51.5]} 27. h3 {[%clk 0:00:23]} 27... Kh8 {[%clk 0:00:50.9]}
28. Qc2 {[%clk 0:00:19]} 28... b5 {[%clk 0:00:46]} 29. Rc5 {[%clk 0:00:18.1]}
29... b4 {[%clk 0:00:45.2]} 30. Qa4 {[%clk 0:00:16.2]} 30... Qg3 {[%clk
0:00:39.8]} 31. c7 {[%clk 0:00:12.6]} 31... Rc8 {[%clk 0:00:29.2]} 32. Qc2
{[%clk 0:00:06.6]} 32... Qxe3+ {[%clk 0:00:27.7]} 33. Kh1 {[%clk 0:00:07.2]}
33... Rf7 {[%clk 0:00:20.2]} 34. Rc1 {[%clk 0:00:05.1]} 34... b3 {[%clk
0:00:20]} 35. Qg6 {[%clk 0:00:04.4]} 35... Rfxc7 {[%clk 0:00:12.1]} 36. Rxc7
{[%clk 0:00:03.5]} 36... Qxc1+ {[%clk 0:00:12.8]} 37. Rxc1 {[%clk 0:00:03.1]}
37... Rxc1+ {[%clk 0:00:13.7]} 38. Kh2 {[%clk 0:00:03.6]} 38... b2 {[%clk
0:00:14.5]} 39. Qe8+ {[%clk 0:00:02]} 39... Kh7 {[%clk 0:00:15.2]} 40. Qxe6
{[%clk 0:00:02.5]} 40... b1=Q {[%clk 0:00:16.1]} 41. Qxd5 {[%clk 0:00:03.1]}
41... Rh1+ {[%clk 0:00:15.4]} 42. Kg3 {[%clk 0:00:03.6]} 42... Qd3+ {[%clk
0:00:16.3]} 43. Kg4 {[%clk 0:00:03.9]} 43... Re1 {[%clk 0:00:14.6]} 44. h4
{[%clk 0:00:03.7]} 44... Qe4+ {[%clk 0:00:14.5]} 0-1

[Event "Late-Titled-Tuesday-Blitz-April-23-2024"]
[Site "Chess.com"]
[Date "2024.04.23"]
[Round "4"]
[White "Janh4"]
[Black "rhungaski"]
[Result "0-1"]
[WhiteElo "2210"]
[BlackElo "2485"]
[TimeControl "180+1"]
[EndTime "14:40:44 PDT"]
[Termination "rhungaski won by resignation"]

1. d4 {[%clk 0:03:00.9]} 1... g6 {[%clk 0:02:58.5]} 2. Nc3 {[%clk 0:03:00.6]}
2... Bg7 {[%clk 0:02:57.2]} 3. Bf4 {[%clk 0:03:00.9]} 3... d6 {[%clk 0:02:54.6]}
4. e3 {[%clk 0:03:01]} 4... Nf6 {[%clk 0:02:50.3]} 5. h4 {[%clk 0:03:01.1]} 5...
Nc6 {[%clk 0:02:36.7]} 6. h5 {[%clk 0:02:59.8]} 6... Nxh5 {[%clk 0:02:33.3]} 7.
Rxh5 {[%clk 0:02:59.5]} 7... gxh5 {[%clk 0:02:34.2]} 8. Qxh5 {[%clk 0:02:59.5]}
8... e6 {[%clk 0:02:05.3]} 9. Nf3 {[%clk 0:02:49.2]} 9... h6 {[%clk 0:02:03.5]}
10. O-O-O {[%clk 0:02:43.2]} 10... Qf6 {[%clk 0:01:54.7]} 11. Bd3 {[%clk
0:02:39.9]} 11... a6 {[%clk 0:01:47.5]} 12. Ne4 {[%clk 0:02:36.8]} 12... Qe7
{[%clk 0:01:47]} 13. Nc3 {[%clk 0:02:34.5]} 13... Bd7 {[%clk 0:01:33.9]} 14. d5
{[%clk 0:02:19.4]} 14... Nb4 {[%clk 0:01:33.8]} 15. dxe6 {[%clk 0:02:15.9]}
15... Bxe6 {[%clk 0:01:25.1]} 16. Nd4 {[%clk 0:02:05.7]} 16... Nxd3+ {[%clk
0:00:52.7]} 17. Rxd3 {[%clk 0:02:01]} 17... O-O-O {[%clk 0:00:48.6]} 18. Nf5
{[%clk 0:01:49.8]} 18... Bxf5 {[%clk 0:00:46.7]} 19. Qxf5+ {[%clk 0:01:49]}
19... Qe6 {[%clk 0:00:47.4]} 20. Qa5 {[%clk 0:01:37.8]} 20... Bxc3 {[%clk
0:00:47.1]} 21. Rxc3 {[%clk 0:01:33.3]} 21... Rd7 {[%clk 0:00:42.5]} 22. f3
{[%clk 0:01:10.9]} 22... h5 {[%clk 0:00:40.9]} 23. e4 {[%clk 0:00:59.6]} 23...
h4 {[%clk 0:00:40.1]} 24. Qb6 {[%clk 0:00:50.8]} 24... Kb8 {[%clk 0:00:34.4]}
25. Qd4 {[%clk 0:00:47.4]} 25... Rg8 {[%clk 0:00:23.4]} 26. Be3 {[%clk
0:00:47.5]} 26... c5 {[%clk 0:00:21.4]} 27. Qd2 {[%clk 0:00:39.5]} 27... h3
{[%clk 0:00:21.4]} 28. gxh3 {[%clk 0:00:37.1]} 28... Qxh3 {[%clk 0:00:20.7]} 29.
b3 {[%clk 0:00:31]} 29... Qxf3 {[%clk 0:00:15.1]} 30. Kb2 {[%clk 0:00:20.7]}
30... Qxe4 {[%clk 0:00:15]} 31. Bxc5 {[%clk 0:00:17.1]} 31... d5 {[%clk
0:00:15]} 32. Bd4 {[%clk 0:00:13.8]} 32... Ka8 {[%clk 0:00:13.8]} 33. Rc5 {[%clk
0:00:11.6]} 33... Qf5 {[%clk 0:00:13]} 34. Qb4 {[%clk 0:00:10.3]} 34... Qe6
{[%clk 0:00:12.8]} 35. a4 {[%clk 0:00:09.6]} 35... Rb8 {[%clk 0:00:11.5]} 36. a5
{[%clk 0:00:09.3]} 36... Rd6 {[%clk 0:00:10.6]} 37. Qc3 {[%clk 0:00:09.1]} 37...
Rc6 {[%clk 0:00:10.6]} 38. b4 {[%clk 0:00:08.1]} 38... Rbc8 {[%clk 0:00:10.8]}
39. Qf3 {[%clk 0:00:03.6]} 39... Rxc5 {[%clk 0:00:10.4]} 40. Bxc5 {[%clk
0:00:03.5]} 40... f5 {[%clk 0:00:09.6]} 41. Bd4 {[%clk 0:00:02.9]} 41... Qe4
{[%clk 0:00:09.7]} 42. Bc5 {[%clk 0:00:03]} 42... Qxf3 {[%clk 0:00:09.8]} 0-1

[Event "Late-Titled-Tuesday-Blitz-April-23-2024"]
[Site "Chess.com"]
[Date "2024.04.23"]
[Round "4"]
[White "jinxy2009"]
[Black "scandalgod"]
[Result "0-1"]
[WhiteElo "2302"]
[BlackElo "2507"]
[TimeControl "180+1"]
[EndTime "14:40:45 PDT"]
[Termination "scandalgod won on time"]

1. e4 {[%clk 0:03:00.9]} 1... e5 {[%clk 0:02:47.5]} 2. Nf3 {[%clk 0:03:00.8]}
2... Nc6 {[%clk 0:02:46.3]} 3. Bc4 {[%clk 0:03:01]} 3... Nf6 {[%clk 0:02:45.8]}
4. d3 {[%clk 0:03:01.3]} 4... Be7 {[%clk 0:02:45.6]} 5. O-O {[%clk 0:03:00.9]}
5... O-O {[%clk 0:02:46.1]} 6. Nc3 {[%clk 0:02:59.8]} 6... d6 {[%clk 0:02:46.2]}
7. a4 {[%clk 0:03:00.2]} 7... Bg4 {[%clk 0:02:35.8]} 8. h3 {[%clk 0:02:56.4]}
8... Bh5 {[%clk 0:02:34.7]} 9. Be3 {[%clk 0:02:56.5]} 9... Qd7 {[%clk
0:02:31.4]} 10. Nd5 {[%clk 0:02:38.9]} 10... Rae8 {[%clk 0:02:27.1]} 11. a5
{[%clk 0:02:34.3]} 11... a6 {[%clk 0:02:26.9]} 12. c3 {[%clk 0:02:33.6]} 12...
Bd8 {[%clk 0:02:26]} 13. b4 {[%clk 0:02:33.4]} 13... Nxd5 {[%clk 0:02:22.3]} 14.
Bxd5 {[%clk 0:02:32.3]} 14... Kh8 {[%clk 0:02:16.1]} 15. c4 {[%clk 0:02:04.5]}
15... Qc8 {[%clk 0:02:04.8]} 16. b5 {[%clk 0:01:42.5]} 16... Ne7 {[%clk
0:02:01.2]} 17. c5 {[%clk 0:01:23.8]} 17... Nxd5 {[%clk 0:02:00]} 18. exd5
{[%clk 0:01:23.7]} 18... f5 {[%clk 0:01:52.7]} 19. g4 {[%clk 0:00:58.1]} 19...
fxg4 {[%clk 0:01:51.1]} 20. Nh2 {[%clk 0:00:58.4]} 20... Rf7 {[%clk 0:01:11.3]}
21. hxg4 {[%clk 0:00:57.2]} 21... Bg6 {[%clk 0:01:11.1]} 22. c6 {[%clk 0:00:48]}
22... axb5 {[%clk 0:01:09.4]} 23. cxb7 {[%clk 0:00:33.6]} 23... Qxb7 {[%clk
0:01:06.9]} 24. Qb3 {[%clk 0:00:20.6]} 24... Qa6 {[%clk 0:00:52.9]} 25. Rfb1
{[%clk 0:00:20.1]} 25... e4 {[%clk 0:00:39.7]} 26. Qxb5 {[%clk 0:00:14.5]} 26...
Qxb5 {[%clk 0:00:38.1]} 27. Rxb5 {[%clk 0:00:15.4]} 27... Bf6 {[%clk 0:00:36.6]}
28. Ra2 {[%clk 0:00:12.9]} 28... exd3 {[%clk 0:00:36.8]} 29. a6 {[%clk
0:00:12.9]} 29... Rff8 {[%clk 0:00:36]} 30. a7 {[%clk 0:00:13.2]} 30... Ra8
{[%clk 0:00:34.3]} 31. f4 {[%clk 0:00:10.7]} 31... Be4 {[%clk 0:00:32]} 32. g5
{[%clk 0:00:08.6]} 32... Bc3 {[%clk 0:00:31.8]} 33. Nf1 {[%clk 0:00:07.4]} 33...
Rfe8 {[%clk 0:00:24.6]} 34. Kf2 {[%clk 0:00:05.7]} 34... c5 {[%clk 0:00:19.7]}
35. dxc6 {[%clk 0:00:03.6]} 35... Bxc6 {[%clk 0:00:19.5]} 36. Rb6 {[%clk
0:00:04.1]} 36... Rec8 {[%clk 0:00:18.1]} 37. Nd2 {[%clk 0:00:03.3]} 37... d5
{[%clk 0:00:17.7]} 38. Raa6 {[%clk 0:00:02.8]} 38... Bd7 {[%clk 0:00:14]} 39.
Rb7 {[%clk 0:00:03.3]} 39... Bf5 {[%clk 0:00:11.6]} 40. Re7 {[%clk 0:00:03.4]}
40... d4 {[%clk 0:00:11.6]} 41. Bxd4 {[%clk 0:00:01.5]} 41... Bxd4+ {[%clk
0:00:11.6]} 42. Kf3 {[%clk 0:00:02]} 42... Bc5 {[%clk 0:00:09.8]} 0-1